[Event "Reykjavik Open 2025"]
[Site "Reykjavik"]
[Date "2025.04.15"]
[Round "9.12"]
[White "Thorfinnsson, Bragi"]
[Black "Papp, Gabor"]
[Result "1/2-1/2"]
[Annotator "TA"]
[ECO "D30"]
[WhiteElo "2375"]
[BlackElo "2502"]
[PlyCount "91"]
[EventDate "2025.04.09"]
[EventType "swiss"]
[EventCountry "ISL"]
[SourceTitle "playchess.com"]
[Source "ChessBase"]
[SourceQuality "1"]
[TimeControl "40/5400+30:1800+30"]

{[%evp 9,91,1,0,-31,-25,-39,-41,-50,-39,-62,-52,-63,-65,-83,-50,-88,-110,-97,-96,-108,-96,-112,-124,-102,-108,-111,-111,-108,-105,-93,-71,-91,-21,-21,-27,-10,-20,-15,-10,-10,-10,-12,74,69,79,76,138,135,131,130,127,105,104,105,121,65,226,226,212,226,228,227,274,123,114,38,273,279,275,266,378,113,147,159,167,167,167,162,129,0,35,0,110,0]} 1. d4 {[%emt 0:00:16]} Nf6 {[%emt 0:00:06]} 2. c4 {[%emt 0:01:05]} e6 {[%emt 0:00:06]} 3. Nf3 {[%emt 0:00:23]} d5 {[%emt 0:00:16]} 4. Bg5 {[%emt 0:02:08]} dxc4 {[%emt 0:00:26]} 5. Qa4+ {[%emt 0:04:24]} Nbd7 {[%emt 0:09:51]} 6. Nbd2 {[%emt 0:04:53][%cal Oe2e4] D30: Queen's Gambit Declined: Systems without Nc3.} a6 {[%emt 0:13:59]} 7. Qxc4 {[%emt 0:02:00]} c5 {[%emt 0:00:42]} 8. dxc5 {[%emt 0:22:58] Black is slightly better.} Bxc5 {[%emt 0:06:25]} 9. b4 {[%emt 0:07:43]} Be7 $146 {[%emt 0:01:14]} (9... b5 10. Qb3 Bd6 11. e4 Bb7 12. Bd3 h6 13. Be3 Ng4 14. Bd4 Be5 15. Bb2 Qb6 {0-1 Haufe,W (2303)-Chacon,P (2496) LIPEAP jub30-A corr 2002}) 10. e3 {[%emt 0:00:24]} h6 {[%emt 0:06:02]} 11. Bh4 {[%emt 0:01:15]} b5 {[%emt 0:00:15]} 12. Qb3 {[%emt 0:01:18]} Bb7 {[%emt 0:00:06]} 13. Be2 {[%emt 0:01:00]} g5 $1 {[%emt 0:01:13]} 14. Bg3 {[%emt 0:00:13]} g4 {[%emt 0:00:05]} 15. Ne5 {[%emt 0:03:30]} Bxg2 {[%emt 0:00:27] Black has a king side majority} 16. Rg1 {[%emt 0:00:06]} Bd5 {[%emt 0:00:19]} 17. Qb2 {[%emt 0:00:29]} Rg8 {[%emt 0:01:17]} 18. a4 {[%emt 0:07:54]} Nh5 {[%emt 0:09:06]} 19. Nxd7 {[%emt 0:02:38] Threatens to win with Ne5.} Nxg3 {[%emt 0:00:05]} (19... Qxd7 $6 20. Be5 $14) 20. Rxg3 {[%emt 0:03:17]} Qxd7 {[%emt 0:00:05]} (20... Kxd7 $17 21. e4 Bf6) 21. axb5 $11 {[%emt 0:04:04]} axb5 {[%emt 0:02:38]} 22. Rxa8+ {[%emt 0:01:42]} Bxa8 {[%emt 0:00:03] A strong pair of Bishops.} 23. Bxg4 {[%emt 0:00:30]} Qd6 {[%emt 0:03:02][%cal Oe7h4] and ...Bh4! would now be decisive} 24. Be2 {[%emt 0:02:25]} Kf8 {[%emt 0:04:29]} (24... Qxb4 $2 25. Rxg8+ Kd7 26. Qxb4 (26. Bxb5+ Bc6 $18) 26... Bxb4 27. Rxa8 $18) 25. Bxb5 {[%emt 0:09:39]} Qd5 {[%emt 0:06:32]} (25... Qxb4 $11 {remains equal.} 26. Qxb4 Bxb4) 26. Bf1 $16 {[%emt 0:06:07]} Qh1 {[%emt 0:06:13]} 27. Qe5 $40 {[%emt 0:00:32][%mdl 128] Intending Qb8+ and mate. White has strong attack.} Rxg3 {[%emt 0:03:14]} (27... Qd5 $142 28. Qb8+ Qd8 29. Qxd8+ Bxd8) 28. hxg3 {[%emt 0:02:24]} (28. fxg3 $6 Kg8 $11) 28... Kg8 {[%emt 0:00:14] Dodges Qh8+} 29. e4 {[%emt 0:01:53]} Bf8 {[%emt 0:04:18]} 30. Ke2 {[%emt 0:02:49]} Bc6 {[%emt 0:11:31]} 31. b5 {[%emt 0:01:23]} Bb7 {[%emt 0:00:01]} 32. Nf3 {[%emt 0:01:12]} (32. Ke1 $16) 32... Kh7 $2 {[%emt 0:00:03]} ({Black should try} 32... Ba8 $1 $14) 33. Qc7 $1 $18 {[%emt 0:02:39][%csl LRb7,LRf7]} Bxe4 {[%emt 0:00:06]} 34. Qxf7+ {[%emt 0:00:10]} Bg7 {[%emt 0:00:01][%cal Oe4d3]} 35. Nd2 $1 {[%emt 0:01:50]} Bf5 {[%emt 0:03:28]} 36. Qc7 {[%emt 0:00:19]} (36. Qd7 $1 $18 {is the precise move to win.}) 36... Qd5 $16 {[%emt 0:03:58]} 37. b6 {[%emt 0:00:15]} (37. Qc4 $16) 37... Qb5+ {[%emt 0:01:15]} (37... Qd4 $1 $14) 38. Ke1 {[%emt 0:01:05]} Qa5 {[%emt 0:00:02]} 39. Bc4 {[%emt 0:00:31]} Kg6 {[%emt 0:01:45] [#]} (39... h5 $142 40. Qd6 Be5 41. Qe7+ Kh6) 40. g4 $2 {[%emt 0:00:34]} Qa1+ {[%emt 0:03:54]} 41. Ke2 {[%emt 0:01:05] White has more active pieces.} Bxg4+ {[%emt 0:00:08]} 42. f3 {[%emt 0:01:19]} Bf5 {[%emt 0:00:05]} 43. Qg3+ {[%emt 0:06:56]} Kf7 {[%emt 0:01:24] [#]} 44. Qc7+ {[%emt 0:04:07]} (44. b7 $1 $16 {[%cal Rb7b8]} Qe5+ 45. Qxe5 Bxe5 46. Nb3) 44... Kg6 $14 {[%emt 0:00:12]} 45. Qg3+ {[%emt 0:01:15]} (45. b7 $14 Qe5+ 46. Qxe5 Bxe5 47. Nb3) 45... Kf7 $1 $16 {[%emt 0:00:05] [#]} 46. Qc7+ {[%emt 0:00:07] Weighted Error Value: White=0.27 (precise) /Black=0.27 (precise)   Loses game:     	---       	Black=2      Missed win:     	White=1     	---        Mistake:       	White=6     	Black=4      Inaccurate:     	White=1     	Black=1      OK:         	White=18    	Black=16     Best:        	White=4     	Black=6      Strong:       	White=1     	Black=2} (46. b7 $1 $16 {[%cal Rb7b8]} Qe5+ 47. Qxe5 Bxe5 48. Nb3) 1/2-1/2

[Event "Reykjavik Open 2025"]
[Site "Reykjavik"]
[Date "2025.04.15"]
[Round "9.13"]
[White "Pipiras, Filipa Fortuna"]
[Black "Stefansson, Vignir Vatnar"]
[Result "0-1"]
[Annotator "TA"]
[ECO "E60"]
[WhiteElo "2195"]
[BlackElo "2536"]
[PlyCount "116"]
[EventDate "2025.04.09"]
[EventType "swiss"]
[EventCountry "ISL"]
[SourceTitle "playchess.com"]
[Source "ChessBase"]
[SourceQuality "1"]
[TimeControl "40/5400+30:1800+30"]

{[%evp 11,116,30,39,47,37,35,39,36,39,30,27,33,41,35,81,57,64,66,69,18,22,25,32,37,39,25,50,0,0,0,0,-9,35,0,4,-38,-26,-12,-20,-36,-29,-35,-29,-39,-35,-68,-89,-54,-86,-57,-51,-181,-181,-185,-152,-174,-86,-106,-64,-70,-70,-77,-83,-8,-8,-8,-8,-8,-8,-8,-8,-8,-8,-8,-8,-8,-8,-8,-8,-8,-8,-29974,-29975,-29972,-29976,-29976,-29977,-29977,-29978,-29978,-29979,-29980,-29981,-29983,-29984,-29984,-29985,-29985,-29985,-29989,-29990,-29996,-29997,-29997,-29996,-29998,-29999]} 1. d4 {[%emt 0:00:03]} d6 {[%emt 0:00:50]} 2. Nf3 {[%emt 0:00:41]} Nf6 {[%emt 0:00:07]} 3. c4 {[%emt 0:00:09]} g6 {[%emt 0:00:04]} 4. g3 {[%emt 0:00:21]} Bg7 {[%emt 0:00:07]} 5. Bg2 {[%emt 0:00:06]} Bf5 {[%emt 0:00:06]} 6. O-O {[%emt 0:02:29]} O-O {[%emt 0:00:18]} 7. b3 {[%emt 0:02:44] E60: King's Indian: Unusual lines and Fianchetto Variation without Nc3.} a5 {[%emt 0:00:12]} 8. Bb2 {[%emt 0:01:08]} c6 {[%emt 0:01:00][%cal Oa5a4]} 9. Nc3 {[%emt 0:02:54] White is slightly better.} Ne4 {[%emt 0:01:19]} 10. Nh4 {[%emt 0:00:48]} Nxc3 {[%emt 0:00:07]} 11. Bxc3 {[%emt 0:00:03]} Bd7 {[%emt 0:04:55]} 12. Qd2 {[%emt 0:01:31]} f5 $146 {[%emt 0:16:11]} (12... Re8 $14 {feels stronger.}) (12... a4 13. e4 axb3 14. axb3 Na6 15. Nf3 c5 16. d5 Bxc3 17. Qxc3 f6 18. Ne1 Nb4 {0-1 Yelisieiev,Y (2401)-Caruana,F (2782) World-chT Rapid 2023 (12)}) 13. Rad1 {[%emt 0:05:01]} a4 {[%emt 0:03:12]} 14. b4 {[%emt 0:04:30]} Na6 {[%emt 0:00:26][%cal Bb8a6,Ba6c7,Bc7b5][%mdl 32]} 15. Rfe1 {[%emt 0:04:26]} (15. d5 $14) 15... Nc7 $11 {[%emt 0:01:22]} 16. d5 {[%emt 0:16:25]} Bxc3 {[%emt 0:00:43] Successful Defense Black} 17. Qxc3 {[%emt 0:00:04]} cxd5 {[%emt 0:00:40]} 18. cxd5 {[%emt 0:04:09]} Nb5 {[%emt 0:05:40]} 19. Qe3 {[%emt 0:01:51]} ({White should try} 19. Qd2 $1 $14) 19... Qe8 {[%emt 0:00:11][%cal Of5f4]} 20. Nf3 {[%emt 0:02:46]} Qf7 {[%emt 0:01:28]} 21. Nd4 {[%emt 0:06:59]} Nc7 {[%emt 0:07:32]} 22. Qd3 {[%emt 0:05:13]} Nxd5 {[%emt 0:07:33] [#]} 23. Nxf5 $1 {[%emt 0:00:58]} Bxf5 {[%emt 0:02:46]} 24. Qxd5 {[%emt 0:04:03]} Be6 {[%emt 0:00:43]} 25. Qxe6 {[%emt 0:01:59]} Qxe6 {[%emt 0:00:05]} 26. Bd5 {[%emt 0:00:05] [#]} Kf7 {[%emt 0:03:45][%cal Oa8c8]} 27. e4 {[%emt 0:04:00][%cal Oe4e5] [#]} (27. Bxe6+ Kxe6) 27... Rac8 $1 {[%emt 0:12:16][%cal Oc8c2]} 28. e5 {[%emt 0:02:03] [#]} (28. Rc1 g5) 28... Qxd5 {[%emt 0:00:40]} 29. Rxd5 $15 {[%emt 0:00:05][%mdl 4096] Endgame KRR-KRR} Ke6 {[%emt 0:00:04]} 30. Rb5 {[%emt 0:04:17]} Rc2 {[%emt 0:03:54][%csl LRa2,LRf2]} 31. exd6+ {[%emt 0:04:51]} (31. f4 $15) 31... Kxd6 $19 {[%emt 0:00:08]} 32. f4 {[%emt 0:00:22]} Kc6 {[%emt 0:05:27]} (32... Rxa2 33. Rxb7 Rc8 34. Rbxe7 $17) 33. Rbe5 {[%emt 0:02:10]} Rd8 {[%emt 0:00:23]} (33... Rxa2 $19 {and Black stays clearly on top. Threatens to win with ...Rd8.} 34. Rxe7 Kb6 35. Rxh7 a3) 34. Rxe7 $17 {[%emt 0:05:42]} Rdd2 {[%emt 0:00:14]} 35. R1e6+ {[%emt 0:06:39]} Kd5 {[%emt 0:00:22]} 36. Re5+ {[%emt 0:00:09] [#]} Kc4 $1 {[%emt 0:06:28]} 37. Rc5+ {[%emt 0:01:42]} Kxb4 {[%emt 0:00:16] ( -> ...Rd1+)} 38. Rxc2 {[%emt 0:00:05]} Rxc2 {[%emt 0:00:04]} 39. Rxb7+ $11 {[%emt 0:00:05] KR-KR. White is a pawn up.} Ka3 {[%emt 0:00:08]} 40. Rxh7 {[%emt 0:01:38]} Kxa2 {[%emt 0:00:39]} 41. g4 {[%emt 0:12:29]} a3 {[%emt 0:02:18]} 42. f5 {[%emt 0:02:14]} gxf5 {[%emt 0:00:33]} 43. gxf5 {[%emt 0:00:07]} Kb3 {[%emt 0:00:20]} 44. f6 {[%emt 0:07:33]} a2 {[%emt 0:01:19][%cal Ra2a1]} 45. Ra7 $1 {[%emt 0:00:06]} Rc1+ {[%emt 0:00:53]} 46. Kg2 $2 {[%emt 0:00:09][%mdl 8192]} (46. Kf2 $11) 46... a1=Q {[%emt 0:00:05] Black mates.} (46... a1=B 47. f7 Bg7 48. Rb7+ Ka4 49. h4 $16) 47. Rxa1 {[%emt 0:00:07]} Rxa1 {[%emt 0:00:03] KR-KPP} 48. f7 {[%emt 0:00:17]} Ra8 {[%emt 0:00:05]} 49. Kg3 {[%emt 0:01:21]} Kc4 {[%emt 0:00:34]} 50. Kg4 {[%emt 0:01:09]} Rf8 {[%emt 0:00:15]} 51. h4 {[%emt 0:01:38]} Kd5 {[%emt 0:00:13]} 52. Kf5 {[%emt 0:01:08]} Rxf7+ {[%emt 0:00:04] KR-KP} 53. Kg6 {[%emt 0:00:10]} Ke6 {[%emt 0:00:17]} 54. h5 {[%emt 0:00:05]} Rf1 {[%emt 0:00:29]} 55. h6 {[%emt 0:00:59] [#]} Rg1+ $1 {[%emt 0:00:07]} 56. Kh7 {[%emt 0:00:10]} Kf7 {[%emt 0:00:08]} 57. Kh8 {[%emt 0:00:06]} Rg8+ {[%emt 0:00:05]} 58. Kh7 {[%emt 0:00:05]} Rg6 {[%emt 0:00:04] Weighted Error Value: White=0.25 (precise) /Black=0.06 (flawless)   Loses game:     	White=1     	---        Mistake:       	White=3     	Black=2      Inaccurate:     	White=3     	Black=2      OK:         	White=12    	Black=21     Best:        	White=5     	Black=3      Strong:       	White=1     	Black=1} 0-1

[Event "Reykjavik Open 2025"]
[Site "Reykjavik"]
[Date "2025.04.15"]
[Round "9.14"]
[White "Bekker, Stefan"]
[Black "Gorshtein, Ido"]
[Result "0-1"]
[Annotator "TA"]
[ECO "E00"]
[WhiteElo "2358"]
[BlackElo "2557"]
[PlyCount "100"]
[EventDate "2025.04.09"]
[EventType "swiss"]
[EventCountry "ISL"]
[SourceTitle "playchess.com"]
[Source "ChessBase"]
[SourceQuality "1"]
[TimeControl "40/5400+30:1800+30"]

{[%evp 9,100,0,19,4,27,8,18,20,26,-9,0,2,2,7,5,5,3,-4,10,-17,-16,-27,-22,-45,-21,-11,-23,-44,0,-45,-50,-43,-21,-33,0,0,0,0,9,-19,-20,-30,-4,-13,-6,-17,0,-14,-10,-29,-17,-31,-10,-51,-29,-27,-22,-31,-33,-36,-45,-21,-27,-25,-27,-40,-40,-21,-19,-53,-28,-27,0,0,0,-26,-14,-43,-42,-63,-41,-260,-252,-228,-237,-1418,-1404,-1349,-918,-29985,-1289,-1225,-1262]} 1. d4 {[%emt 0:00:03]} Nf6 {[%emt 0:00:13]} 2. c4 {[%emt 0:00:07]} e6 {[%emt 0:00:04]} 3. g3 {[%emt 0:00:04]} Bb4+ {[%emt 0:01:23]} 4. Bd2 {[%emt 0:00:27]} Be7 {[%emt 0:00:44]} 5. Nf3 {[%emt 0:00:05]} a6 {[%emt 0:01:12]} 6. Bg2 {[%emt 0:00:29] E00: Catalan Bogo-Indian (3 g3 Bb4+).} b5 {[%emt 0:03:07]} 7. b3 {[%emt 0:02:28]} Bb7 {[%emt 0:00:10]} 8. O-O {[%emt 0:03:45] The position is equal.} O-O {[%emt 0:00:29]} 9. Qc2 {[%emt 0:01:46]} d6 {[%emt 0:03:32]} 10. Nc3 {[%emt 0:01:11]} b4 {[%emt 0:00:09]} 11. Na4 {[%emt 0:00:23]} Be4 {[%emt 0:02:05]} 12. Qb2 {[%emt 0:02:17]} a5 {[%emt 0:00:49]} 13. Rad1 $146 {[%emt 0:03:55]} (13. a3 Na6 14. axb4 axb4 15. Ra2 Qb8 16. Qa1 Qb7 17. Nb2 c5 18. Nd3 cxd4 19. Qxd4 {0-1 Skatchkov,V (2242)-Narayanan,S (2618) Titled Tuesday intern op 18th Aug blitz 2020 (3)}) 13... Nbd7 {[%emt 0:02:12]} 14. Qc1 {[%emt 0:00:13]} Qb8 {[%emt 0:05:38]} 15. Rfe1 {[%emt 0:00:56]} Qb7 {[%emt 0:00:46]} 16. Bh3 {[%emt 0:03:25]} c5 {[%emt 0:08:06]} 17. dxc5 {[%emt 0:02:03]} dxc5 {[%emt 0:00:09]} 18. Bf4 {[%emt 0:07:11]} Rad8 {[%emt 0:00:14][%cal Oe4c6]} 19. Nd2 {[%emt 0:07:18]} (19. Qe3 $5) 19... Bc6 {[%emt 0:00:24]} 20. Nb2 {[%emt 0:00:17]} h6 {[%emt 0:01:27]} 21. Nd3 {[%emt 0:04:21]} Nh7 {[%emt 0:01:54]} 22. Nf3 {[%emt 0:07:21]} Be4 {[%emt 0:05:50]} 23. Nd2 {[%emt 0:03:02] Threatens to win with Nxe4.} Ng5 {[%emt 0:01:07]} 24. Bf1 {[%emt 0:02:26]} Bc6 {[%emt 0:00:21]} 25. h4 {[%emt 0:03:53]} Nh7 {[%emt 0:00:15]} 26. Nf3 {[%emt 0:00:39]} Be4 {[%emt 0:10:37]} 27. Nd2 {[%emt 0:00:07]} Bxd3 {[%emt 0:00:26]} 28. exd3 {[%emt 0:00:53]} Nb8 {[%emt 0:00:11]} 29. Bg2 {[%emt 0:00:07]} Qb6 {[%emt 0:00:55]} 30. Nf3 {[%emt 0:02:46]} Nc6 {[%emt 0:01:19]} 31. Ne5 {[%emt 0:08:25]} (31. Bxh6 {is more complex.} gxh6 32. Qxh6 Qc7 33. Re4) 31... Nxe5 {[%emt 0:01:50]} 32. Bxe5 {[%emt 0:00:03]} Rd7 {[%emt 0:05:24]} 33. Be4 {[%emt 0:03:09]} Nf6 {[%emt 0:00:30][%cal Bh7f6,Bf6e8,Be8c7][%mdl 32]} 34. Bf3 {[%emt 0:00:25]} Rfd8 {[%emt 0:00:35]} 35. Qe3 {[%emt 0:00:24]} Ne8 {[%emt 0:00:44]} 36. Qe4 {[%emt 0:00:52]} Bf6 {[%emt 0:01:47]} 37. Qc6 {[%emt 0:00:12]} Qa7 {[%emt 0:00:46]} 38. d4 {[%emt 0:05:57]} cxd4 {[%emt 0:02:38]} 39. Qb5 {[%emt 0:01:05]} Nc7 {[%emt 0:03:57]} 40. Qa4 {[%emt 0:04:15]} Qc5 {[%emt 0:06:04]} 41. Qc6 $1 {[%emt 0:31:10]} Qa7 {[%emt 0:35:58]} 42. Qa4 {[%emt 0:00:06]} d3 $36 {[%emt 0:01:28][%mdl 2048] Black is pushing.} (42... Re7 {simplifies} 43. Qc6 Na6 44. Bxf6 gxf6 45. Qe4 Kg7) 43. Bc6 {[%emt 0:02:39] A strong pair of Bishops.} d2 {[%emt 0:01:01]} 44. Re2 {[%emt 0:08:23]} (44. Bxd7 $2 dxe1=Q+ 45. Rxe1 Bxe5 46. Rxe5 Qd4 47. Rxa5 Rxd7 $19 (47... Qxd7 $2 48. Qxd7 Rxd7 49. Ra4 $19)) 44... Rd3 {[%emt 0:02:52] [#] and ...Bxe5 should not be overlooked} 45. Be4 $2 {[%emt 0:02:44] This move loses the game for White.} (45. Kg2 $1 $15) 45... Bxe5 $19 {[%emt 0:07:33]} 46. Bxd3 {[%emt 0:00:50]} Rxd3 {[%emt 0:00:08]} (46... Bxg3 47. Rdxd2 Bxh4 48. Qc6 $17) 47. Rxe5 $2 {[%emt 0:00:19]} (47. Rdxd2 Rxd2 (47... Rxg3+ $2 48. Kf1 $17) 48. Rxd2 Bxg3 49. h5) 47... Rxg3+ {[%emt 0:00:09]} 48. Kf1 {[%emt 0:00:31] [#]} Qb7 $1 {[%emt 0:00:17] ( -> ...Qf3)} 49. Qd7 {[%emt 0:06:10]} (49. Rd5 Rc3) 49... Qh1+ {[%emt 0:00:27]} (49... Qf3 $142 50. Qxd2 Rh3 51. Rg5 hxg5 52. Qd8+ Ne8 (52... Kh7 $2 53. Qd3+ Qxd3+ 54. Rxd3 $19) 53. Qxe8+ Kh7 54. Qh8+ Kxh8 55. Rd8+ Kh7 56. Rh8+ Kxh8 57. Ke1 Rh1+ (57... Rxh4 $2 {is a self mate.} 58. c5 Rd4 59. Kf1 Rd1#) 58. Kd2 Rd1+ 59. Kc2 Qe2#) 50. Ke2 {[%emt 0:00:27]} Qf3+ {[%emt 0:00:03] Weighted Error Value: White=0.37/Black=0.34  Loses game:     	White=1     	---        Mistake:       	White=1     	---        Inaccurate:     	White=7     	Black=4      OK:         	White=17    	Black=18     Best:        	White=1     	Black=5      Strong:       	White=1     	---} (50... Qxh4 $2 {perishes.} 51. fxg3 Qh2+ 52. Kf3 $18) 0-1

[Event "Reykjavik Open 2025"]
[Site "Reykjavik"]
[Date "2025.04.15"]
[Round "9.15"]
[White "Sokolovsky, Yahli"]
[Black "Xu, Yuanyuan"]
[Result "1-0"]
[Annotator "RC"]
[ECO "B11"]
[WhiteElo "2546"]
[BlackElo "2288"]
[PlyCount "73"]
[EventDate "2025.04.09"]
[EventType "swiss"]
[EventCountry "ISL"]
[SourceTitle "playchess.com"]
[Source "ChessBase"]
[SourceQuality "1"]
[TimeControl "40/5400+30:1800+30"]

1. e4 {[%emt 0:00:03]} c6 {[%emt 0:00:01]} 2. Nc3 {[%emt 0:00:12]} d5 {[%emt 0:00:09]} 3. Nf3 {[%emt 0:00:04]} Bg4 {[%emt 0:06:15]} 4. h3 {[%emt 0:02:28]} Bxf3 {[%emt 0:00:02]} 5. Qxf3 {[%emt 0:00:08]} e6 {[%emt 0:00:02]} 6. g3 {[%emt 0:01:42]} Nd7 {[%emt 0:05:13]} 7. d4 {[%emt 0:04:04]} dxe4 {[%emt 0:01:24]} 8. Nxe4 {[%emt 0:00:30]} Ndf6 {[%emt 0:01:25]} 9. c3 {[%emt 0:19:46]} Nxe4 {[%emt 0:00:19]} 10. Qxe4 {[%emt 0:00:06]} Nf6 {[%emt 0:00:38]} 11. Qc2 {[%emt 0:02:56]} Qd5 {[%emt 0:01:22]} 12. Rg1 {[%emt 0:00:06]} e5 {[%emt 0:11:09]} 13. Bg2 {[%emt 0:15:09]} e4 {[%emt 0:05:59]} 14. Be3 {[%emt 0:05:22]} a5 {[%emt 0:13:24]} 15. Qb3 {[%emt 0:17:04]} b5 {[%emt 0:02:11]} 16. Qxd5 {[%emt 0:01:10]} cxd5 {[%emt 0:00:12]} 17. Bf1 {[%emt 0:03:26]} Rb8 {[%emt 0:00:40]} 18. Bf4 {[%emt 0:02:43]} Rb7 {[%emt 0:00:18]} 19. a4 {[%emt 0:00:04]} bxa4 {[%emt 0:00:25]} 20. Rxa4 {[%emt 0:00:10]} Rxb2 {[%emt 0:12:22]} 21. Rxa5 {[%emt 0:00:08]} Be7 {[%emt 0:00:31]} 22. Bb5+ {[%emt 0:00:45]} Nd7 {[%emt 0:00:29]} 23. Bc1 {[%emt 0:06:03]} Rb1 {[%emt 0:01:31]} 24. Kd2 {[%emt 0:03:25]} Bd8 {[%emt 0:02:13]} 25. Bxd7+ {[%emt 0:00:18]} Kxd7 {[%emt 0:00:02]} 26. Rxd5+ {[%emt 0:00:08]} Kc6 {[%emt 0:00:16]} 27. Rc5+ {[%emt 0:01:37]} Kd7 {[%emt 0:00:47]} 28. Rd5+ {[%emt 0:09:42]} Kc6 {[%emt 0:00:07]} 29. Re5 {[%emt 0:00:01]} Bf6 {[%emt 0:01:11]} 30. Rxe4 {[%emt 0:00:01]} Ra8 {[%emt 0:00:25]} 31. Kc2 {[%emt 0:00:57]} Rba1 {[%emt 0:03:32]} 32. Kd3 {[%emt 0:00:11]} Rb1 {[%emt 0:05:11]} 33. Rge1 {[%emt 0:00:52]} Ra2 {[%emt 0:03:29]} 34. R4e2 {[%emt 0:00:58]} Ra4 {[%emt 0:00:07]} 35. Bb2 {[%emt 0:00:50]} Rxe1 {[%emt 0:00:50]} 36. Rxe1 {[%emt 0:00:01]} Kd5 {[%emt 0:01:20]} 37. Ra1 {[%emt 0:00:13]} 1-0

[Event "Reykjavik Open 2025"]
[Site "Reykjavik"]
[Date "2025.04.15"]
[Round "9.16"]
[White "Lohia, Sohum"]
[Black "Draskovic, Luka"]
[Result "0-1"]
[Annotator "RC"]
[ECO "C41"]
[WhiteElo "2354"]
[BlackElo "2488"]
[PlyCount "82"]
[EventDate "2025.04.09"]
[EventType "swiss"]
[EventCountry "ISL"]
[SourceTitle "playchess.com"]
[Source "ChessBase"]
[SourceQuality "1"]
[TimeControl "40/5400+30:1800+30"]

1. e4 {[%emt 0:00:06]} d6 {[%emt 0:00:55]} 2. d4 {[%emt 0:00:11]} Nf6 {[%emt 0:00:07]} 3. Nc3 {[%emt 0:00:09]} e5 {[%emt 0:00:11]} 4. Nf3 {[%emt 0:00:15]} Nbd7 {[%emt 0:00:10]} 5. Bc4 {[%emt 0:00:13]} Be7 {[%emt 0:00:18]} 6. O-O {[%emt 0:00:20]} O-O {[%emt 0:00:29]} 7. a4 {[%emt 0:00:15]} exd4 {[%emt 0:01:48]} 8. Nxd4 {[%emt 0:01:40]} Re8 {[%emt 0:00:38]} 9. Re1 {[%emt 0:09:05]} Bf8 {[%emt 0:07:41]} 10. Bf4 {[%emt 0:08:51]} Nc5 {[%emt 0:17:11]} 11. Qf3 {[%emt 0:14:25]} Bg4 {[%emt 0:16:55]} 12. Qg3 {[%emt 0:00:18]} Qd7 {[%emt 0:01:43]} 13. h3 {[%emt 0:01:56]} Nh5 {[%emt 0:03:54]} 14. Qxg4 {[%emt 0:00:11]} Qxg4 {[%emt 0:00:04]} 15. hxg4 {[%emt 0:00:08]} Nxf4 {[%emt 0:00:05]} 16. g3 {[%emt 0:00:59]} Nfe6 {[%emt 0:01:21]} 17. Nxe6 {[%emt 0:02:23]} Nxe6 {[%emt 0:02:33]} 18. Kg2 {[%emt 0:09:56]} c6 {[%emt 0:02:46]} 19. Rad1 {[%emt 0:03:41]} Rad8 {[%emt 0:03:53]} 20. b3 {[%emt 0:11:39]} g6 {[%emt 0:02:26]} 21. Bxe6 {[%emt 0:06:35]} Rxe6 {[%emt 0:03:03]} 22. f3 {[%emt 0:07:00]} Rde8 {[%emt 0:10:44]} 23. Kf2 {[%emt 0:03:55]} Re5 {[%emt 0:01:37]} 24. Re2 {[%emt 0:08:55]} h5 {[%emt 0:03:47]} 25. gxh5 {[%emt 0:00:51]} Rxh5 {[%emt 0:00:07]} 26. g4 {[%emt 0:05:46]} Rh2+ {[%emt 0:03:39]} 27. Kf1 {[%emt 0:00:30]} Rh4 {[%emt 0:02:10]} 28. Kg2 {[%emt 0:00:57]} Bg7 {[%emt 0:01:03]} 29. Rd3 {[%emt 0:01:03]} Be5 {[%emt 0:00:39]} 30. Kf2 {[%emt 0:00:53]} Kg7 {[%emt 0:00:28]} 31. Ke3 {[%emt 0:00:52]} d5 {[%emt 0:01:57]} 32. Kd2 {[%emt 0:01:33]} d4 {[%emt 0:01:55]} 33. Na2 {[%emt 0:00:27]} Rh1 {[%emt 0:02:07]} 34. Re1 {[%emt 0:00:12]} Reh8 {[%emt 0:00:14]} 35. Rxh1 {[%emt 0:00:54]} Rxh1 {[%emt 0:00:06]} 36. b4 {[%emt 0:00:49]} Bf4+ {[%emt 0:01:56]} 37. Ke2 {[%emt 0:00:04]} Ra1 {[%emt 0:00:07]} 38. Ra3 {[%emt 0:00:56]} Bc1 {[%emt 0:00:07]} 39. Nxc1 {[%emt 0:00:34]} Rxa3 {[%emt 0:00:06]} 40. a5 {[%emt 0:00:03]} Re3+ {[%emt 0:00:23]} 41. Kf2 {[%emt 0:30:05]} Rc3 {[%emt 0:30:06]} 0-1